bitfinex/quotes_BTCUSD_20250711
["timestamp","ask_amount","ask_price","bid_price","bid_amount"]
[1752201992276,0.25,116470.0,116460.0,0.45791079]
[1752201992674,0.25,116470.0,116460.0,0.4664972]
[1752201992889,0.62921655,116470.0,116460.0,0.00860152]
[1752201993096,0.251,116470.0,116460.0,0.1853643]
[1752201993296,0.251,116470.0,116460.0,0.19393575]
[1752201993491,0.251,116470.0,116460.0,0.00503]
[1752201993692,0.251,116470.0,116460.0,0.01357266]
[1752201993921,0.251,116470.0,116460.0,0.00503]
[1752201994126,0.25315,116470.0,116460.0,0.00503]
[1752201994331,0.34234895,116470.0,116450.0,0.40389949]
[1752201994505,0.35093455,116470.0,116450.0,0.40389949]
[1752201994745,0.53434917,116470.0,116450.0,0.40389949]
[1752201994945,0.0601685,116460.0,116450.0,0.06084949]
[1752201995149,0.14774843,116460.0,116440.0,0.53600847]
[1752201995361,0.14774843,116460.0,116440.0,0.47515898]
[1752201995574,0.03345,116460.0,116440.0,0.53213697]
[1752201995785,0.03345,116460.0,116440.0,0.72494646]
[1752201995958,0.03345,116460.0,116450.0,0.00198]
[1752201996194,0.04203597,116460.0,116450.0,0.00298]
[1752201996415,0.05062201,116460.0,116440.0,0.73353442]
[1752201996862,0.04203597,116460.0,116440.0,0.73653442]
[1752201997074,0.04203597,116460.0,116440.0,0.73353442]
[1752201997324,0.25,116450.0,116440.0,0.74212223]
[1752201997542,0.25,116450.0,116440.0,0.73551442]
[1752201998247,0.25,116450.0,116440.0,0.72692653]
[1752201998916,0.25,116450.0,116440.0,0.74410223]
[1752201999128,0.25,116450.0,116440.0,0.74610223]
[1752202001129,0.25,116450.0,116440.0,0.74910223]
[1752202001328,0.25,116450.0,116440.0,0.75468997]
[1752202001528,0.25,116450.0,116440.0,0.74610223]
[1752202001727,0.25,116450.0,116440.0,0.75764982]
[1752202001930,0.25,116450.0,116440.0,1.10301637]
[1752202002176,0.38192,116460.0,116450.0,0.18892198]
[1752202002398,0.25,116460.0,116450.0,0.61746829]
[1752202002645,0.25,116460.0,116450.0,0.64866829]
[1752202003310,0.25,116470.0,116460.0,0.18890568]
[1752202003478,0.25,116470.0,116460.0,0.38378165]
[1752202003724,0.25,116470.0,116460.0,0.38683173]
[1752202003925,0.25,116470.0,116460.0,0.39541807]
[1752202004071,0.25,116470.0,116460.0,0.37824524]
[1752202004280,0.25,116470.0,116460.0,0.38683173]
[1752202004486,0.25,116470.0,116460.0,0.39541814]
[1752202004817,0.25,116470.0,116460.0,0.37824524]
[1752202005032,0.251,116470.0,116460.0,0.37824524]
[1752202005670,0.251,116470.0,116460.0,0.20651253]
[1752202005925,0.251,116470.0,116460.0,0.21509909]
[1752202006176,0.251,116470.0,116460.0,0.22368558]
[1752202006397,0.251,116470.0,116460.0,0.21509909]
[1752202006650,0.251,116470.0,116460.0,0.20651253]
[1752202007074,0.251,116470.0,116460.0,0.38683187]
[1752202007709,0.251,116470.0,116460.0,0.39541836]
[1752202007912,0.251,116470.0,116460.0,0.40400477]
[1752202008514,0.251,116470.0,116460.0,0.41259111]
[1752202008719,0.251,116470.0,116460.0,0.40400477]
[1752202009213,0.251,116470.0,116460.0,0.39541836]
[1752202009781,0.251,116470.0,116460.0,0.41259082]
[1752202009989,0.251,116470.0,116460.0,0.41259089]
[1752202010426,0.251,116470.0,116460.0,0.41259097]
[1752202010642,0.251,116470.0,116460.0,0.4040047]
[1752202010818,0.251,116470.0,116460.0,0.40400477]
[1752202011088,0.251,116470.0,116460.0,0.39541836]
[1752202011302,0.251,116470.0,116460.0,0.40400477]
[1752202011518,0.251,116470.0,116460.0,0.41259111]
[1752202012160,0.251,116470.0,116460.0,0.41259075]
[1752202012368,0.251,116470.0,116460.0,0.41259031]
[1752202013035,0.251,116470.0,116460.0,0.67785026]
[1752202013464,0.251,116470.0,116460.0,0.61687436]
[1752202013675,0.251,116470.0,116460.0,0.63287436]
[1752202014115,0.251,116470.0,116460.0,0.61687436]
[1752202014328,0.251,116470.0,116460.0,0.677851]
[1752202014539,0.251,116470.0,116460.0,0.693851]
[1752202014798,0.251,116470.0,116460.0,0.64897436]
[1752202016260,0.251,116470.0,116460.0,0.98897436]
[1752202016488,0.251,116470.0,116460.0,1.03318743]
[1752202016711,0.251,116470.0,116460.0,1.03314743]
[1752202017568,0.251,116470.0,116460.0,1.41593731]
[1752202019113,0.001,116470.0,116460.0,1.4415607]
[1752202019322,0.001,116470.0,116460.0,1.36538124]
[1752202019541,0.001,116470.0,116460.0,0.9418642]
[1752202019754,0.001,116470.0,116460.0,1.4723841]
[1752202021063,0.001,116470.0,116460.0,1.20712415]
[1752202021559,0.25,116490.0,116480.0,0.19745789]
[1752202021784,0.25,116490.0,116480.0,0.67275646]
[1752202021993,0.25,116490.0,116480.0,0.59976784]
[1752202022405,0.25209,116490.0,116480.0,0.00517]
[1752202022625,0.2868,116490.0,116480.0,0.13188]
[1752202022854,0.28369,116490.0,116480.0,0.13202898]
[1752202023264,0.28369,116490.0,116480.0,0.13302898]
[1752202023476,0.28369,116490.0,116480.0,0.00114898]
[1752202023687,0.56922791,116490.0,116480.0,0.00114898]
[1752202023914,0.58639639,116490.0,116480.0,0.00114898]
[1752202024131,0.82634691,116490.0,116480.0,0.00114898]
[1752202024347,1.09160686,116490.0,116480.0,0.00114898]
[1752202024551,0.81776278,116490.0,116480.0,0.00114898]
[1752202024760,1.08302273,116490.0,116480.0,0.00114898]
[1752202024980,0.90319271,116490.0,116480.0,0.00114898]
[1752202025417,0.89855605,116490.0,116480.0,0.00014898]
[1752202025621,1.163816,116490.0,116480.0,0.00014898]
[1752202025832,0.89855605,116490.0,116480.0,0.00014898]
[1752202026036,0.81312612,116490.0,116480.0,0.00014898]
[1752202026420,0.54786617,116490.0,116480.0,0.00014898]
[1752202026626,0.81312612,116490.0,116480.0,0.00014898]
[1752202029285,0.7818617,116490.0,116480.0,0.00014898]
[1752202029493,0.95355025,116490.0,116480.0,0.00014898]
[1752202029693,1.03898018,116490.0,116480.0,0.00014898]
[1752202031785,0.77327713,116490.0,116480.0,0.00014898]
[1752202031986,0.5080171,116490.0,116480.0,0.00014898]
[1752202032244,0.78186103,116490.0,116480.0,0.00014898]
[1752202032639,0.78186096,116490.0,116480.0,0.00014898]
[1752202032776,0.51660101,116490.0,116480.0,0.00014898]
[1752202032994,0.36448327,116490.0,116480.0,0.00014898]
[1752202033199,0.36448327,116490.0,116480.0,0.00531898]
[1752202033200,0.49632327,116490.0,116480.0,0.00531898]
[1752202033608,0.49632327,116490.0,116480.0,0.00212898]
[1752202033808,0.48632327,116490.0,116480.0,0.00014898]
[1752202034069,0.40089334,116490.0,116480.0,0.00014898]
[1752202034263,0.23745334,116490.0,116480.0,0.19419237]
[1752202034473,0.36720334,116490.0,116480.0,0.46803726]
[1752202034671,0.36720334,116490.0,116480.0,0.47662198]
[1752202034878,0.36720334,116490.0,116480.0,0.48520662]
[1752202035078,0.23536334,116490.0,116480.0,0.48520662]
[1752202035301,0.36720334,116490.0,116480.0,0.21994667]
[1752202035707,0.23536334,116490.0,116480.0,0.48520662]
[1752202036142,0.25,116490.0,116480.0,0.48520662]
[1752202036341,0.25,116490.0,116480.0,0.47662198]
[1752202036562,0.25,116490.0,116480.0,0.48520662]
[1752202037729,0.25,116490.0,116480.0,0.57063655]
[1752202037932,0.25,116490.0,116480.0,0.67841517]
[1752202040908,0.25,116490.0,116480.0,1.01841517]
[1752202041163,0.25,116490.0,116480.0,1.02676648]
[1752202041991,0.25,116490.0,116480.0,1.01841517]
[1752202044085,0.25,116490.0,116480.0,0.73715522]
[1752202044306,0.25,116490.0,116480.0,1.11861517]
[1752202045689,0.25,116490.0,116480.0,0.85335522]
[1752202045899,0.25,116490.0,116480.0,1.15021517]
[1752202047763,0.25,116490.0,116480.0,1.11861517]
[1752202050029,0.25,116490.0,116480.0,1.13461517]
[1752202050651,0.25,116490.0,116480.0,1.15101517]
[1752202051705,0.25,116490.0,116480.0,1.11861517]
[1752202053605,0.25,116490.0,116480.0,0.98681517]
[1752202053785,0.25,116490.0,116480.0,1.11857517]
[1752202057612,0.28642,116490.0,116480.0,0.4163276]
[1752202057822,0.58601639,116490.0,116480.0,0.06108717]
[1752202058011,0.57743211,116490.0,116480.0,0.19284717]
[1752202058471,0.28642,116490.0,116480.0,0.06108717]
[1752202058672,0.29500376,116490.0,116480.0,0.19284717]
[1752202058878,0.29500376,116490.0,116480.0,0.13190898]
[1752202059309,0.28642,116490.0,116480.0,0.13190898]
[1752202059535,0.28642,116490.0,116480.0,0.19284717]
[1752202059957,0.29500376,116490.0,116480.0,0.19284717]
[1752202060406,0.25,116490.0,116480.0,1.01660501]
[1752202060611,0.25,116490.0,116480.0,0.7911368]
[1752202060819,0.25,116490.0,116480.0,1.05639675]
[1752202061239,0.25,116490.0,116480.0,1.13257537]
[1752202062092,0.25,116490.0,116480.0,1.05739675]
[1752202063165,0.25,116500.0,116490.0,0.19744094]
[1752202063387,0.25,116500.0,116490.0,0.54093162]
[1752202063599,0.25,116500.0,116490.0,0.54407162]
[1752202064445,0.25,116500.0,116490.0,0.27881167]
[1752202064648,0.25,116500.0,116490.0,0.54407162]
[1752202064852,0.25,116500.0,116490.0,0.26164363]
[1752202065056,0.28278,116500.0,116490.0,0.39684783]
[1752202065266,0.28278,116500.0,116490.0,0.41401586]
[1752202065496,0.28278,116500.0,116490.0,0.41401579]
[1752202065705,0.28278,116500.0,116490.0,0.41401586]
[1752202065914,0.28278,116500.0,116490.0,0.42259977]
[1752202066126,0.28278,116500.0,116490.0,0.41401586]
[1752202066535,0.28278,116500.0,116490.0,0.42259977]
[1752202066958,0.28278,116500.0,116490.0,0.42773977]
[1752202068033,0.25,116500.0,116490.0,0.42773977]
[1752202068244,0.25,116500.0,116490.0,0.69299972]
[1752202068671,0.25,116500.0,116490.0,0.42773977]
[1752202068879,0.25,116500.0,116490.0,0.69295972]
[1752202069669,0.2657,116500.0,116490.0,0.56123972]
[1752202069869,0.2657,116500.0,116490.0,0.29597977]
[1752202070103,0.25,116500.0,116490.0,1.03295972]
[1752202070377,0.25,116500.0,116490.0,1.04805972]
[1752202070719,0.25,116500.0,116490.0,1.03295972]
[1752202073695,0.25,116500.0,116490.0,1.29821967]
[1752202073904,0.25,116500.0,116490.0,0.72326904]
[1752202074107,0.03474,116520.0,116510.0,0.19740704]
[1752202074306,0.03677,116520.0,116510.0,0.39010076]
[1752202074721,0.03677,116520.0,116510.0,0.39010084]
[1752202074930,0.03677,116520.0,116510.0,0.39868327]
[1752202075054,0.03373,116520.0,116510.0,0.39868327]
[1752202075826,0.03373,116520.0,116510.0,0.40080327]
[1752202076026,0.03373,116520.0,116510.0,0.39868327]
[1752202076233,0.03373,116520.0,116510.0,0.39010084]
[1752202076443,0.03373,116520.0,116510.0,0.39868327]
[1752202077014,0.28373,116520.0,116510.0,0.39868327]
[1752202077217,0.28373,116520.0,116510.0,0.66920322]
[1752202077218,0.2501,116520.0,116510.0,0.66920322]
[1752202078248,0.0001,116520.0,116510.0,0.66920322]
[1752202078463,0.0001,116520.0,116510.0,1.00920322]
[1752202079093,0.0001,116520.0,116510.0,1.03365943]
[1752202079267,0.0001,116520.0,116510.0,1.04935943]
[1752202080188,0.2501,116520.0,116510.0,1.04935943]
[1752202080836,0.2501,116520.0,116510.0,1.0726894]
[1752202081284,0.0001,116520.0,116510.0,1.15090656]
[1752202084798,0.0001,116520.0,116510.0,0.74559664]
[1752202085055,0.01763,116520.0,116510.0,0.8294117]
[1752202085268,0.28413,116520.0,116510.0,0.60916185]
[1752202085477,0.62150199,116520.0,116510.0,0.20985716]
[1752202085685,0.62150199,116520.0,116510.0,0.002]
[1752202085894,0.62150199,116520.0,116510.0,0.13364]
[1752202086100,0.62150199,116520.0,116510.0,0.55844011]
[1752202086335,0.35624204,116520.0,116510.0,0.48222295]
[1752202086549,0.68536837,116520.0,116510.0,0.19447582]
[1752202086756,0.62150199,116520.0,116510.0,0.19347582]
[1752202086978,0.35624204,116520.0,116510.0,0.19347582]
[1752202087434,0.35624204,116520.0,116510.0,0.19247582]
[1752202087641,0.28722,116520.0,116510.0,0.19247582]
[1752202088675,0.28722,116520.0,116510.0,0.06083582]
[1752202088901,0.28722,116520.0,116510.0,0.19247582]
[1752202089113,0.28722,116520.0,116510.0,0.06083582]
[1752202089318,0.55247995,116520.0,116510.0,0.06083582]
[1752202089529,0.55247995,116520.0,116510.0,0.19247582]
[1752202089942,0.29580162,116520.0,116510.0,0.19247582]
[1752202090170,0.28722,116520.0,116510.0,0.19247582]
[1752202090392,0.29580155,116520.0,116510.0,0.19247582]
[1752202090603,0.28722,116520.0,116510.0,0.19247582]
[1752202091056,0.29580155,116520.0,116510.0,0.19247582]
[1752202091494,0.28722,116520.0,116510.0,0.19247582]
[1752202091703,0.29580155,116520.0,116510.0,0.19247582]
[1752202092562,0.28722,116520.0,116510.0,0.19247582]
[1752202093898,0.29580162,116520.0,116510.0,0.19247582]
[1752202094306,0.28722,116520.0,116510.0,0.19247582]
[1752202094742,0.29580162,116520.0,116510.0,0.19247582]
[1752202094948,0.28722,116520.0,116510.0,0.19247582]
[1752202097709,0.29580155,116520.0,116510.0,0.19247582]
[1752202097888,0.28722,116520.0,116510.0,0.19247582]
[1752202099256,0.28722,116520.0,116510.0,0.19243582]
[1752202099807,0.56106157,116520.0,116510.0,0.06083582]
[1752202100173,0.55247995,116520.0,116510.0,0.19243582]
[1752202100375,0.29580162,116520.0,116510.0,0.19243582]
[1752202100568,0.55247995,116520.0,116510.0,0.19243582]
[1752202100767,0.56106157,116520.0,116510.0,0.19243582]
[1752202101013,0.29580155,116520.0,116510.0,0.19243582]
[1752202101212,0.5610615,116520.0,116510.0,0.19243582]
[1752202101435,0.5696432,116520.0,116510.0,0.19243582]
[1752202101645,0.5610615,116520.0,116510.0,0.19243582]
[1752202102692,0.5696432,116520.0,116510.0,0.19243582]
[1752202103043,0.30438325,116520.0,116510.0,0.19243582]
[1752202103251,0.57822504,116520.0,116510.0,0.19243582]
[1752202103447,0.5696432,116520.0,116510.0,0.19243582]
[1752202103609,0.57822504,116520.0,116510.0,0.19243582]
[1752202104229,0.30438325,116520.0,116510.0,0.19243582]
[1752202104436,0.57822504,116520.0,116510.0,0.19243582]
[1752202104916,0.5696432,116520.0,116510.0,0.19243582]
[1752202105154,0.56964312,116520.0,116510.0,0.19243582]
[1752202105618,0.56964312,116520.0,116510.0,0.06083582]
[1752202105831,0.30438317,116520.0,116510.0,0.19243582]
[1752202106077,0.29580155,116520.0,116510.0,0.19243582]
[1752202106310,0.5610615,116520.0,116510.0,0.06083582]
[1752202106548,0.56964312,116520.0,116510.0,0.19243582]
[1752202106794,0.28722,116520.0,116510.0,0.19243582]
[1752202107038,0.56106157,116520.0,116510.0,0.19243582]
[1752202107298,0.55247995,116520.0,116510.0,0.19243582]
[1752202107568,0.56106157,116520.0,116510.0,0.19243582]
[1752202107815,0.56964327,116520.0,116510.0,0.19243582]
[1752202108043,0.60784196,116520.0,116510.0,0.19243582]
[1752202108260,0.31296516,116520.0,116510.0,0.06083582]
[1752202108469,0.31296516,116520.0,116510.0,0.19243582]
[1752202108680,1.30714098,116520.0,116510.0,0.06083582]
[1752202108889,0.01716641,116500.0,116490.0,0.07425057]
[1752202109107,0.41435968,116500.0,116490.0,0.07425057]
[1752202109324,0.54595968,116500.0,116490.0,0.07425057]
[1752202109534,0.52879305,116500.0,116490.0,0.07425057]
[1752202109747,0.16641,116500.0,116490.0,0.07628057]
[1752202109986,0.16641,116500.0,116490.0,0.07925057]
[1752202110202,0.0319,116510.0,116490.0,0.5495674]
[1752202110403,0.0319,116510.0,116500.0,0.19536582]
[1752202110607,0.03391,116510.0,116500.0,0.19739582]
[1752202110818,0.03391,116510.0,116500.0,0.06583582]
[1752202111021,0.28391,116510.0,116500.0,0.19743582]
[1752202112129,0.28391,116510.0,116500.0,0.36910963]
[1752202112130,0.2819,116510.0,116500.0,0.36910963]
[1752202112365,0.25,116510.0,116500.0,0.66011975]
[1752202112564,0.25,116510.0,116500.0,0.60600076]
[1752202112768,0.25,116510.0,116500.0,0.68409191]
[1752202112984,0.25,116510.0,116500.0,0.62316725]
[1752202113408,0.25,116510.0,116500.0,0.94600083]
[1752202113648,0.25,116510.0,116500.0,1.03080131]
[1752202113852,0.25,116510.0,116500.0,1.01550131]
[1752202114428,0.25,116510.0,116500.0,0.75024136]
[1752202114667,0.25,116510.0,116500.0,0.75882453]
[1752202114873,0.25,116510.0,116500.0,0.79172453]
[1752202115087,0.25,116510.0,116500.0,0.77512453]
[1752202115292,0.25,116510.0,116500.0,0.75882453]
[1752202116018,0.25,116510.0,116500.0,0.79012453]
[1752202116232,0.25,116510.0,116500.0,0.75882453]
[1752202117538,0.25,116510.0,116500.0,0.77382453]
[1752202118243,0.25,116510.0,116500.0,0.75882453]
[1752202118689,0.25,116510.0,116500.0,0.79042453]
[1752202119100,0.25,116510.0,116500.0,0.77392453]
[1752202119527,0.25,116510.0,116500.0,0.75882453]
[1752202119947,0.25,116510.0,116500.0,0.77512453]
[1752202120163,0.25,116510.0,116500.0,0.75882453]
[1752202123571,0.25,116510.0,116500.0,0.62722453]
[1752202123782,0.28351,116510.0,116500.0,0.74719144]
[1752202123988,0.28351,116510.0,116500.0,0.74719158]
[1752202124205,0.28351,116510.0,116500.0,0.75577497]
[1752202124411,0.28351,116510.0,116500.0,0.74719158]
[1752202124657,0.341818,116510.0,116500.0,0.07621716]
[1752202124874,0.60707795,116510.0,116500.0,0.13152]
[1752202125132,0.341818,116510.0,116500.0,0.19250019]
[1752202125337,0.55187995,116510.0,116500.0,0.19250019]
[1752202125539,0.28662,116510.0,116500.0,0.19250019]
[1752202125951,0.55187995,116510.0,116500.0,0.19250019]
[1752202126366,0.28662,116510.0,116500.0,0.19250019]
[1752202126796,0.29500174,116510.0,116500.0,0.19250019]
[1752202129235,0.47255006,116510.0,116500.0,0.19250019]
[1752202129435,0.46396748,116510.0,116500.0,0.19250019]
[1752202129913,0.47254999,116510.0,116500.0,0.19250019]
[1752202130286,0.48971544,116510.0,116500.0,0.06098019]
[1752202130491,0.87791259,116510.0,116500.0,0.06098019]
[1752202130686,0.87791259,116510.0,116500.0,0.19250019]
[1752202130687,0.61265264,116510.0,116500.0,0.19250019]
[1752202130872,0.87791259,116510.0,116500.0,0.19250019]
[1752202131680,0.61265264,116510.0,116500.0,0.19250019]
[1752202131894,0.54628148,116510.0,116500.0,0.19250019]
[1752202132357,0.53769883,116510.0,116500.0,0.19250019]
[1752202132745,0.54628148,116510.0,116500.0,0.19250019]
[1752202132947,0.53769883,116510.0,116500.0,0.19250019]
[1752202134333,0.52911632,116510.0,116500.0,0.19250019]
[1752202134540,0.53769883,116510.0,116500.0,0.19250019]
[1752202134746,0.5575463,116510.0,116500.0,0.19250019]
[1752202136778,0.54896379,116510.0,116500.0,0.19250019]
[1752202136981,0.52911632,116510.0,116500.0,0.19250019]
[1752202138138,0.51195167,116510.0,116500.0,0.19250019]
[1752202138908,0.52053403,116510.0,116500.0,0.19250019]
[1752202139321,0.51195167,116510.0,116500.0,0.19250019]
[1752202140541,0.33542993,116510.0,116500.0,0.64311749]
[1752202140749,0.25,116510.0,116500.0,0.66028419]
[1752202140950,0.25,116510.0,116500.0,0.66028434]
[1752202141148,0.25,116510.0,116500.0,0.66886766]
[1752202141352,0.25,116510.0,116500.0,0.65170095]
[1752202141653,0.25,116510.0,116500.0,0.66886736]
[1752202142296,0.25,116510.0,116500.0,0.63818717]
[1752202142736,0.25,116510.0,116500.0,1.05440433]
[1752202146958,0.25,116510.0,116500.0,1.03910433]
[1752202148576,0.25,116510.0,116500.0,1.05470433]
[1752202149354,0.25,116510.0,116500.0,1.02410433]
[1752202149789,0.25,116510.0,116500.0,1.05590433]
[1752202154766,0.25,116510.0,116500.0,1.05228624]
[1752202157328,0.25,116510.0,116500.0,1.03668624]
[1752202158952,0.25,116510.0,116500.0,0.77142629]
[1752202159156,0.25,116510.0,116500.0,0.75522629]
[1752202159360,0.25,116510.0,116500.0,1.02048624]
[1752202160113,0.25,116510.0,116500.0,1.05258624]
[1752202160862,0.25,116510.0,116500.0,1.03698624]
[1752202161272,0.25,116510.0,116500.0,1.02048624]
[1752202163983,0.25,116510.0,116500.0,1.03578624]
[1752202164193,0.25,116510.0,116500.0,1.01190307]
[1752202164396,0.25,116510.0,116500.0,1.02048624]
[1752202164598,0.25,116510.0,116500.0,1.01190307]
[1752202165070,0.25,116510.0,116500.0,1.01190315]
[1752202165298,0.25,116510.0,116500.0,1.02048639]
[1752202165472,0.25,116510.0,116500.0,1.02906956]
[1752202167193,0.25,116510.0,116500.0,1.02048639]
[1752202167408,0.25,116510.0,116500.0,1.02906956]
[1752202168974,0.25,116510.0,116500.0,1.29390379]
[1752202169398,0.13419073,116510.0,116500.0,1.29390379]
[1752202170583,0.13419073,116510.0,116500.0,1.28532062]
[1752202170793,0.13419073,116510.0,116500.0,1.29390379]
[1752202172114,0.25,116510.0,116500.0,1.29390379]
[1752202172334,0.24988628,116510.0,116500.0,1.29390379]
[1752202175567,0.24988628,116510.0,116500.0,1.30950379]
[1752202177222,0.24988628,116510.0,116500.0,1.32470379]
[1752202178283,0.24988628,116510.0,116500.0,1.41013372]
[1752202179377,0.23959274,116510.0,116500.0,1.51813658]
[1752202179594,0.23959274,116510.0,116500.0,1.44291942]
[1752202180240,0.2501,116520.0,116510.0,0.53740704]
[1752202180438,0.2501,116520.0,116510.0,1.01002488]
[1752202180648,0.2501,116520.0,116510.0,1.01529488]
[1752202180870,0.2501,116520.0,116510.0,1.28034197]
[1752202181079,0.0001,116520.0,116510.0,1.29594197]
[1752202181303,0.2501,116520.0,116510.0,1.03089488]
[1752202182157,0.2501,116520.0,116510.0,1.29594197]
[1752202182371,0.2501,116520.0,116510.0,1.32102115]
[1752202182593,0.2501,116520.0,116510.0,1.42802401]
[1752202183018,0.2501,116520.0,116510.0,1.16288894]
[1752202183455,0.2501,116520.0,116510.0,1.03998608]
[1752202183663,0.2501,116520.0,116510.0,1.05588608]
[1752202183884,0.2501,116520.0,116510.0,1.16288894]
[1752202184093,0.2501,116520.0,116510.0,1.16388894]
[1752202184729,0.2501,116520.0,116510.0,1.16488894]
[1752202185175,0.0001,116520.0,116510.0,1.16488894]
[1752202186309,0.0001,116520.0,116510.0,1.42984805]
[1752202187389,2.44e-06,116520.0,116510.0,1.42884805]
[1752202188024,0.25,116540.0,116530.0,0.80233227]
[1752202188232,0.25,116540.0,116530.0,1.01185633]
[1752202188450,0.25,116540.0,116530.0,1.01503633]
[1752202189266,0.25049777,116540.0,116530.0,1.01503633]
[1752202189889,0.25049777,116540.0,116530.0,1.02369934]
[1752202190713,0.25049777,116540.0,116530.0,1.02365934]
[1752202192960,0.25049777,116540.0,116530.0,1.14038927]
[1752202193170,0.00049777,116540.0,116530.0,1.14038927]
[1752202194060,0.00049777,116540.0,116530.0,1.06427521]
[1752202194275,0.00049777,116540.0,116530.0,1.14024973]
[1752202194908,0.00049777,116540.0,116530.0,1.20927177]
[1752202195120,0.00049777,116540.0,116530.0,1.13329725]
[1752202195542,0.00049777,116540.0,116530.0,0.6680361]
[1752202195748,0.00049777,116540.0,116530.0,1.10891135]
[1752202195953,2.43e-06,116540.0,116530.0,1.00773135]
[1752202196159,2.43e-06,116540.0,116530.0,1.01073135]
[1752202196368,2.43e-06,116540.0,116530.0,1.14201135]
[1752202197416,2.43e-06,116540.0,116530.0,1.14401135]
[1752202200558,2.43e-06,116540.0,116530.0,1.06807521]
[1752202202258,2.43e-06,116540.0,116530.0,0.93679521]
[1752202202470,0.03472243,116540.0,116530.0,0.42090627]
[1752202202681,0.03773243,116540.0,116530.0,0.4009387]
[1752202202898,0.03773243,116540.0,116530.0,0.2696987]
[1752202203128,0.31835341,116540.0,116530.0,0.08090627]
[1752202203340,0.28773243,116540.0,116530.0,0.13624]
[1752202203757,0.28773243,116540.0,116530.0,0.0115814]
[1752202203975,0.28773243,116540.0,116530.0,0.13524]
[1752202204177,0.28773243,116540.0,116530.0,0.1438214]
[1752202204405,0.28773243,116540.0,116530.0,0.33261361]
[1752202204670,0.28773243,116540.0,116530.0,0.31145102]
[1752202204919,0.28773243,116540.0,116530.0,0.14082148]
[1752202205127,0.28773243,116540.0,116530.0,0.13982148]
[1752202205356,0.28773243,116540.0,116530.0,0.15698421]
[1752202205564,0.28773243,116540.0,116530.0,0.33719509]
[1752202206213,0.28773243,116540.0,116530.0,0.13982148]
[1752202206414,0.28773243,116540.0,116530.0,0.13124]
[1752202207501,0.34506932,116540.0,116530.0,0.13124]
[1752202207717,0.28773243,116540.0,116530.0,0.13124]
[1752202207929,0.28773243,116540.0,116530.0,0.14840288]
[1752202208662,0.28773243,116540.0,116530.0,0.13124]
[1752202209594,0.28773243,116540.0,116530.0,0.13982148]
[1752202209802,0.28773243,116540.0,116530.0,0.14840288]
[1752202210214,0.28773243,116540.0,116530.0,0.40478059]
[1752202211008,0.28773243,116540.0,116530.0,0.39619911]
[1752202211263,0.28773243,116540.0,116530.0,0.13982148]
[1752202211551,0.28773243,116540.0,116530.0,0.00858148]
[1752202211767,0.28773243,116540.0,116530.0,0.13982148]
[1752202211971,0.28773243,116540.0,116530.0,0.13124]
[1752202212196,0.28773243,116540.0,116530.0,0.13982148]
[1752202212400,0.28773243,116540.0,116530.0,0.00858148]
[1752202212612,0.28773243,116540.0,116530.0,0.14840288]
[1752202212936,0.28773243,116540.0,116530.0,0.13982148]
[1752202213834,0.28773243,116540.0,116530.0,0.14840288]
[1752202213983,0.28773243,116540.0,116530.0,0.13124]
[1752202214190,0.28773243,116540.0,116530.0,0.13982148]
[1752202214387,0.28773243,116540.0,116530.0,0.14840288]
[1752202214596,0.28773243,116540.0,116530.0,0.13982148]
[1752202214803,0.28773243,116540.0,116530.0,0.13124]
[1752202216308,0.28773243,116540.0,116530.0,0.14840288]
[1752202216523,0.28773243,116540.0,116530.0,0.13982148]
[1752202216936,0.28773243,116540.0,116530.0,0.14840288]
[1752202217139,0.28773243,116540.0,116530.0,0.6021542]
[1752202217342,0.28773243,116540.0,116530.0,0.58499161]
[1752202217554,0.28773243,116540.0,116530.0,0.3200325]
[1752202217707,0.28472243,116540.0,116530.0,0.58499161]
[1752202217924,0.28472243,116540.0,116530.0,0.59357294]
[1752202218487,0.28472243,116540.0,116530.0,0.68233509]
[1752202218699,0.28472243,116540.0,116530.0,0.95286538]
[1752202218927,0.28472243,116540.0,116530.0,0.95286501]
[1752202219577,0.28472243,116540.0,116530.0,0.93570272]
[1752202219798,0.28472243,116540.0,116530.0,0.93871272]
[1752202220009,0.28472243,116540.0,116530.0,0.94428383]
[1752202220218,0.28472243,116540.0,116530.0,0.9442839]
[1752202220964,0.28472243,116540.0,116530.0,0.52021102]
[1752202221174,0.28472243,116540.0,116530.0,0.93357272]
[1752202221595,0.28472243,116540.0,116530.0,0.9421539]
[1752202222012,0.28472243,116540.0,116530.0,0.95073501]
[1752202222229,0.28472243,116540.0,116530.0,0.9421539]
[1752202222433,0.28472243,116540.0,116530.0,0.95073449]
[1752202222642,0.28472243,116540.0,116530.0,0.94215353]
[1752202222844,0.28472243,116540.0,116530.0,0.94428353]
[1752202222963,0.28472243,116540.0,116530.0,0.94751361]
[1752202223166,0.28472243,116540.0,116530.0,0.95286464]
[1752202223378,0.28472243,116540.0,116530.0,0.95286427]
[1752202223929,0.28472243,116540.0,116530.0,0.94428331]
[1752202224129,0.28472243,116540.0,116530.0,0.93570228]
[1752202224995,0.28472243,116540.0,116530.0,0.93893228]
[1752202225200,0.28472243,116540.0,116530.0,0.92177021]
[1752202225407,0.28472243,116540.0,116530.0,0.9335728]
[1752202225637,0.28472243,116540.0,116530.0,0.95609494]
[1752202225848,0.28472243,116540.0,116530.0,1.03200121]
[1752202226267,0.28472243,116540.0,116530.0,0.7670421]
[1752202226475,0.28472243,116540.0,116530.0,1.03200121]
[1752202227613,0.3269905,116540.0,116530.0,0.75523114]
[1752202227819,0.28792243,116540.0,116530.0,1.02664128]
[1752202228033,0.28472243,116540.0,116530.0,1.0180598]
[1752202228253,0.28472243,116540.0,116530.0,1.02664076]
[1752202228663,0.28472243,116540.0,116530.0,0.89540076]
[1752202228841,0.28472243,116540.0,116530.0,1.02664076]
[1752202229246,0.28472243,116540.0,116530.0,0.89540076]
[1752202229457,0.28472243,116540.0,116530.0,0.89753076]
[1752202229793,0.28472243,116540.0,116530.0,1.02877076]
[1752202230013,0.28472243,116540.0,116530.0,0.75523069]
[1752202230224,0.28472243,116540.0,116530.0,1.02877084]
[1752202231077,0.28472243,116540.0,116530.0,1.02877054]
[1752202233267,0.28472243,116540.0,116530.0,1.02018958]
[1752202233495,0.28472243,116540.0,116530.0,1.02877054]
[1752202234360,0.69774006,116540.0,116530.0,0.07590627]
[1752202234583,0.8838964,116540.0,116530.0,0.07590627]
[1752202234790,0.02438089,116530.0,116520.0,0.18290913]